bitfinex/quotes_ETHUSD_20251126
["timestamp","ask_amount","ask_price","bid_price","bid_amount"]
[1764115997271,0.4958,2960.6,2960.5,0.72659411]
[1764115997467,0.8645,2960.9,2960.5,0.72659411]
[1764115997707,0.8645,2960.9,2960.5,1.21029411]
[1764115998000,0.4652,2960.8,2960.5,1.21029411]
[1764115999173,0.4652,2960.8,2960.6,3.37769371]
[1764115999602,0.2339,2960.6,2960.5,0.001]
[1764115999916,0.2339,2960.6,2960.5,0.72659411]
[1764116000121,0.6968,2960.6,2960.5,0.72659411]
[1764116000305,0.6968,2960.6,2960.5,4.10440191]
[1764116000783,0.6968,2960.6,2960.5,0.72659411]
[1764116001483,1.01156998,2960.6,2960.5,0.001]
[1764116006127,1.01356998,2960.6,2960.5,0.001]
[1764116012918,4.79676769,2960.6,2960.5,0.001]
[1764116013244,1.5544719,2960.6,2960.5,0.001]
[1764116013548,4.93216561,2960.6,2960.5,0.001]
[1764116016261,0.6860679,2960.6,2960.5,0.001]
[1764116016547,0.58529792,2960.6,2960.5,0.4578]
[1764116016740,0.4499,2960.6,2960.5,0.4578]
[1764116016941,0.4499,2960.6,2960.5,0.001]
[1764116017317,0.4616,2960.6,2960.5,0.001]
[1764116017714,0.9545,2960.6,2960.5,0.001]
[1764116018344,1.26849351,2960.6,2960.5,0.001]
[1764116019161,4.64618722,2960.6,2960.5,0.001]
[1764116019462,5.77506771,2960.6,2960.5,0.001]
[1764116019631,5.91047251,2960.6,2960.5,0.001]
[1764116022733,2.5327788,2960.6,2960.5,0.001]
[1764116023360,1.99187,2960.6,2960.5,0.001]
[1764116024365,1.26849351,2960.6,2960.5,0.001]
[1764116026742,0.77559351,2960.6,2960.5,0.001]
[1764116027376,1.26849351,2960.6,2960.5,0.001]
[1764116027586,0.77559351,2960.6,2960.5,0.001]
[1764116028261,1.26849351,2960.6,2960.5,0.001]
[1764116028784,0.77559351,2960.6,2960.5,0.001]
[1764116030774,1.24049351,2960.6,2960.5,0.001]
[1764116030975,1.9653751,2960.6,2960.5,0.001]
[1764116031174,6.2226438,2960.6,2960.5,0.001]
[1764116031406,6.78970462,2960.6,2960.5,0.001]
[1764116031686,13.07957034,2960.6,2960.5,0.001]
[1764116031855,1.13109811,2960.5,2960.3,0.001]
[1764116032055,9.57846875,2960.4,2960.3,0.001]
[1764116032283,9.13747321,2960.4,2960.3,0.001]
[1764116032494,10.33916774,2960.4,2960.3,0.001]
[1764116032899,13.71708964,2960.4,2960.3,0.001]
[1764116033879,13.85251828,2960.4,2960.3,0.001]
[1764116035880,13.57349836,2960.4,2960.3,0.001]
[1764116036190,13.57349836,2960.4,2960.1,0.001]
[1764116036191,0.505504,2960.2,2960.1,0.001]
[1764116036497,9.77652955,2960.2,2960.1,0.001]
[1764116036672,10.96631114,2960.2,2960.1,0.001]
[1764116037197,14.00583817,2960.2,2960.1,0.001]
[1764116037864,13.55723455,2960.2,2960.1,0.001]
[1764116038286,12.35037712,2960.2,2960.1,0.001]
[1764116041108,12.35037712,2960.2,2960.0,0.001]
[1764116041109,1.13109811,2960.1,2960.0,0.001]
[1764116041260,3.71844782,2960.1,2960.0,0.001]
[1764116041463,7.09671206,2960.1,2960.0,0.001]
[1764116041700,3.28355147,2960.1,2960.0,0.001]
[1764116041883,2.85482766,2960.1,2960.0,0.001]
[1764116042194,1.86823355,2960.1,2960.0,0.001]
[1764116042768,1.79383755,2960.1,2960.0,0.4644]
[1764116043495,1.17433355,2960.1,2960.0,0.4644]
[1764116043700,0.52799351,2960.1,2960.0,0.4644]
[1764116043873,0.93349751,2960.1,2960.0,0.4644]
[1764116045405,0.52799351,2960.1,2960.0,0.9395]
[1764116046721,0.52823583,2960.1,2960.0,0.9395]
[1764116048707,0.31423583,2960.1,2960.0,0.9395]
[1764116048914,0.214,2960.1,2960.0,0.9395]
[1764116049241,0.52823583,2960.1,2960.0,0.9395]
[1764116050633,0.52823583,2960.1,2960.0,0.4644]
[1764116050931,0.52823583,2960.1,2960.0,0.001]
[1764116050932,5.50150769,2960.1,2960.0,0.001]
[1764116051109,6.79030412,2960.1,2960.0,0.001]
[1764116051714,13.43729461,2960.1,2960.0,0.001]
[1764116053105,13.43739373,2960.1,2960.0,0.001]
[1764116054898,14.34111754,2960.1,2960.0,0.001]
[1764116055525,13.12339373,2960.1,2960.0,0.001]
[1764116055729,13.33739373,2960.1,2960.0,0.001]
[1764116056805,12.86439373,2960.1,2960.0,0.001]
[1764116057004,13.33939373,2960.1,2960.0,0.001]
[1764116057322,13.07839373,2960.1,2960.0,0.001]
[1764116057679,6.70839373,2960.1,2960.0,0.001]
[1764116057822,6.24399373,2960.1,2960.0,0.001]
[1764116058203,2.86572949,2960.1,2960.0,0.001]
[1764116058527,6.24399373,2960.1,2960.0,0.001]
[1764116058929,1.25473138,2960.1,2960.0,0.4644]
[1764116059312,0.53033495,2960.1,2960.0,0.9395]
[1764116060134,1.25473138,2960.1,2960.0,0.9395]
[1764116060337,0.53033495,2960.1,2960.0,0.9395]
[1764116062861,6.90033495,2960.1,2960.0,0.9395]
[1764116063025,7.62473138,2960.1,2960.0,0.9395]
[1764116063224,6.90033495,2960.1,2960.0,0.9395]
[1764116064260,6.90095256,2960.1,2960.0,0.9395]
[1764116065782,6.68695256,2960.1,2960.0,0.9395]
[1764116065937,6.90095256,2960.1,2960.0,0.9395]
[1764116069362,6.68695256,2960.1,2960.0,0.9395]
[1764116069564,6.90095256,2960.1,2960.0,0.9395]
[1764116072741,6.90074942,2960.1,2960.0,0.9395]
[1764116073270,6.90074942,2960.1,2960.0,0.4644]
[1764116074772,0.53074942,2960.1,2960.0,0.4644]
[1764116076270,0.53074942,2960.1,2960.0,0.001]
[1764116076485,0.79814942,2960.1,2960.0,0.001]
[1764116076891,0.53074942,2960.1,2960.0,0.4761]
[1764116077291,0.53074942,2960.1,2960.0,0.9717]
[1764116079192,0.53074942,2960.1,2960.0,0.4761]
[1764116080490,0.53074942,2960.1,2960.0,0.9717]
[1764116081854,0.31674942,2960.1,2960.0,0.9717]
[1764116082089,0.216,2960.1,2960.0,0.9717]
[1764116082299,0.53074942,2960.1,2960.0,0.9717]
[1764116083986,0.216,2960.1,2960.0,0.9717]
[1764116084193,0.53074186,2960.1,2960.0,0.9717]
[1764116085963,0.53074186,2960.1,2960.0,0.001]
[1764116085964,1.26944186,2960.1,2960.0,0.001]
[1764116087166,1.99509691,2960.1,2960.0,0.001]
[1764116087895,5.77886515,2960.1,2960.0,0.001]
[1764116089000,5.77920106,2960.1,2960.0,0.001]
[1764116089467,2.40093682,2960.1,2960.0,0.001]
[1764116090508,2.40099675,2960.1,2960.0,0.001]
[1764116091399,5.77926099,2960.1,2960.0,0.001]
[1764116091801,2.40099675,2960.1,2960.0,0.001]
[1764116092192,1.92969675,2960.1,2960.0,0.001]
[1764116092503,6.68591658,2960.1,2960.0,0.001]
[1764116093077,6.78591658,2960.1,2960.0,0.001]
[1764116093706,5.87926099,2960.1,2960.0,0.001]
[1764116097810,6.78591658,2960.1,2960.0,0.001]
[1764116098189,7.41151069,2960.1,2960.0,0.001]
[1764116098390,6.5048551,2960.1,2960.0,0.001]
[1764116101309,12.8748551,2960.1,2960.0,0.001]
[1764116101611,1.23109811,2960.0,2959.9,0.001]
[1764116101778,2.74349452,2960.0,2959.9,0.001]
[1764116102280,9.11349452,2960.0,2959.9,0.001]
[1764116102598,10.45580856,2960.0,2959.9,0.001]
[1764116102806,13.94818693,2960.0,2959.9,0.001]
[1764116103314,12.7413295,2960.0,2959.9,0.001]
[1764116103507,12.8413295,2960.0,2959.9,0.001]
[1764116104511,12.2742295,2960.0,2959.9,0.001]
[1764116104987,13.18063705,2960.0,2959.9,0.001]
[1764116105314,13.64773705,2960.0,2959.9,0.001]
[1764116106413,13.63313705,2960.0,2959.9,0.001]
[1764116106635,13.91653705,2960.0,2959.9,0.001]
[1764116108533,10.04075868,2960.0,2959.9,0.001]
[1764116108723,11.40847878,2960.0,2959.9,0.001]
[1764116109037,11.40847878,2960.0,2959.9,0.4808]
[1764116109201,11.19447878,2960.0,2959.9,0.4808]
[1764116109399,11.40847878,2960.0,2959.9,0.4808]
[1764116109596,11.41047878,2960.0,2959.9,0.4808]
[1764116109800,8.03173946,2960.0,2959.9,0.4808]
[1764116110029,7.62623546,2960.0,2959.9,0.9343]
[1764116110400,7.41223546,2960.0,2959.9,0.9343]
[1764116110602,7.62623546,2960.0,2959.9,0.9343]
[1764116110910,6.90058041,2960.0,2959.9,0.9343]
[1764116111538,7.62555351,2960.0,2959.9,0.9343]
[1764116111838,7.62555351,2960.0,2959.9,0.4808]
[1764116112228,6.90058041,2960.0,2959.9,0.4808]
[1764116112416,7.62563207,2960.0,2959.9,0.9343]
[1764116112933,0.53058041,2960.0,2959.9,0.9343]
[1764116113338,0.53058041,2960.0,2959.9,0.4808]
[1764116113543,0.98778041,2960.0,2959.9,0.001]
[1764116114430,1.71299824,2960.0,2959.9,0.001]
[1764116114626,2.11862378,2960.0,2959.9,0.001]
[1764116114943,5.78040215,2960.0,2959.9,0.001]
[1764116115128,2.40202378,2960.0,2959.9,0.001]
[1764116115436,5.78040215,2960.0,2959.9,0.001]
[1764116115649,2.40202378,2960.0,2959.9,0.001]
[1764116115833,2.11862378,2960.0,2959.9,0.001]
[1764116116732,1.66142378,2960.0,2959.9,0.4808]
[1764116117450,1.25591978,2960.0,2959.9,0.9343]
[1764116117659,0.53058041,2960.0,2959.9,0.9343]
[1764116118709,0.53058041,2960.0,2959.9,4.31279251]
[1764116119343,0.002,2960.0,2959.9,4.31279251]
[1764116119514,0.002,2960.0,2959.9,5.03838662]
[1764116119837,0.002,2960.1,2960.0,0.72559411]
[1764116120016,0.002,2960.1,2960.0,1.65889411]
[1764116120447,0.002,2960.4,2960.0,1.65889411]
[1764116120736,0.002,2960.6,2960.4,6.7558438]
[1764116121039,0.002,2960.6,2960.5,0.488]
[1764116121349,0.002,2960.6,2960.5,0.9393]
[1764116122607,0.002,2960.6,2960.5,5.04270191]
[1764116127432,0.002,2960.6,2960.5,5.07647998]
[1764116128615,0.002,2960.6,2960.5,5.04270191]
[1764116129257,0.002,2960.6,2960.5,1.66489411]
[1764116129457,0.002,2960.6,2960.5,5.04270191]
[1764116134470,0.7369,2960.6,2960.4,0.001]
[1764116134768,0.9586838,2960.5,2960.4,0.001]
[1764116134957,0.991904,2960.5,2960.4,0.001]
[1764116135464,1.30527766,2960.5,2960.4,0.001]
[1764116135667,1.20527766,2960.5,2960.4,0.001]
[1764116136673,1.41927766,2960.5,2960.4,0.001]
[1764116137251,4.79708546,2960.5,2960.4,0.001]
[1764116137577,4.89708546,2960.5,2960.4,0.001]
[1764116139270,4.79708546,2960.5,2960.4,0.001]
[1764116139469,5.4270835,2960.5,2960.4,0.001]
[1764116143059,6.15267761,2960.5,2960.4,0.001]
[1764116143248,0.1,2960.2,2960.1,0.001]
[1764116143453,1.06977766,2960.2,2960.1,0.001]
[1764116143773,1.55137766,2960.2,2960.1,0.001]
[1764116143952,1.68681317,2960.2,2960.1,0.001]
[1764116144561,1.58681317,2960.2,2960.1,0.001]
[1764116145186,1.68681317,2960.2,2960.1,0.001]
[1764116145381,5.06496329,2960.2,2960.1,0.001]
[1764116145764,5.78821867,2960.2,2960.1,0.001]
[1764116146493,5.78827887,2960.2,2960.1,0.001]
[1764116146797,1.25987366,2960.2,2960.1,0.001]
[1764116147091,4.77344325,2960.2,2960.1,0.001]
[1764116147294,5.17894725,2960.2,2960.1,0.001]
[1764116148267,13.09768664,2960.2,2960.1,0.001]
[1764116148461,13.54606644,2960.2,2960.1,0.001]
[1764116148896,13.96538743,2960.2,2960.1,0.001]
[1764116150089,13.54606644,2960.2,2960.1,0.001]
[1764116151607,1.13109811,2960.1,2959.9,0.001]
[1764116151807,1.54932294,2960.0,2959.9,0.001]
[1764116151996,8.40722294,2960.0,2959.9,0.001]
[1764116153512,11.68560131,2960.0,2959.9,0.001]
[1764116153713,11.99960131,2960.0,2959.9,0.001]
[1764116153918,1.13109811,2959.9,2959.8,0.001]
[1764116154212,3.63489685,2959.9,2959.8,0.001]
[1764116155488,7.01338936,2959.9,2959.8,0.001]
[1764116156201,7.01336646,2959.9,2959.8,0.001]
[1764116156604,13.38336646,2959.9,2959.8,0.001]
[1764116157520,13.51883316,2959.9,2959.8,0.001]
[1764116159885,14.42297764,2959.9,2959.8,0.001]
[1764116160083,14.72569059,2959.9,2959.8,0.001]
[1764116160521,0.505504,2959.8,2959.7,0.001]
[1764116160720,9.56477395,2959.8,2959.7,0.001]
[1764116161026,1.67947791,2959.7,2959.4,0.001]
[1764116161184,4.34707724,2959.7,2959.4,0.001]
[1764116161712,12.40431496,2959.7,2959.4,0.001]
[1764116162208,12.19031496,2959.7,2959.4,0.001]
[1764116162712,12.19031496,2959.7,2959.5,0.001]
[1764116162879,12.40431496,2959.7,2959.5,0.001]
[1764116163285,13.54741825,2959.7,2959.5,0.001]
[1764116163712,12.85791496,2959.7,2959.5,0.001]
[1764116164015,12.64391496,2959.7,2959.5,0.001]
[1764116164222,12.40431496,2959.7,2959.5,0.001]
[1764116164529,13.09337708,2959.7,2959.5,0.001]
[1764116164689,13.99896293,2959.7,2959.5,0.001]
[1764116165012,13.09337708,2959.7,2959.5,0.001]
[1764116165218,13.99894068,2959.7,2959.5,0.001]
[1764116165510,13.99875611,2959.7,2959.5,0.001]
[1764116165717,13.54175688,2959.7,2959.5,0.001]
[1764116166709,13.09337708,2959.7,2959.5,0.001]
[1764116167244,13.99901475,2959.7,2959.5,0.001]
[1764116167535,13.99922898,2959.7,2959.5,0.001]
[1764116167738,13.09491387,2959.7,2959.5,0.001]
[1764116168327,13.54329367,2959.7,2959.5,0.001]
[1764116168534,0.505504,2959.6,2959.5,0.001]
[1764116168732,2.47311663,2959.6,2959.5,0.001]
[1764116169722,12.2219516,2959.6,2959.5,0.001]
[1764116170948,13.42880903,2959.6,2959.5,0.001]
[1764116171745,12.98042923,2959.6,2959.5,0.001]
[1764116172511,13.15242334,2959.6,2959.5,0.4752]
[1764116172743,12.15956591,2959.6,2959.5,0.001]
[1764116173928,11.94556591,2959.6,2959.5,0.001]
[1764116174246,13.36642334,2959.6,2959.5,0.001]
[1764116174453,13.05307258,2959.6,2959.5,0.001]
[1764116174744,13.46814116,2959.6,2959.5,0.001]
[1764116175036,12.79141659,2959.6,2959.5,0.001]
[1764116175242,13.99827402,2959.6,2959.5,0.001]
[1764116175443,13.46814116,2959.6,2959.5,0.001]
[1764116175950,13.92174116,2959.6,2959.5,0.001]
[1764116176644,13.70774116,2959.6,2959.5,0.001]
[1764116176829,13.92174116,2959.6,2959.5,0.001]
[1764116177212,1.23109811,2959.5,2959.4,0.001]
[1764116177455,3.75359945,2959.5,2959.4,0.001]
[1764116177948,3.94969945,2959.5,2959.4,0.001]
[1764116178155,7.32864859,2959.5,2959.4,0.001]
[1764116178734,3.79219945,2959.5,2959.4,0.9559]
[1764116179134,2.58094876,2959.5,2959.4,0.9559]
[1764116179472,5.9598979,2959.5,2959.4,0.9559]
[1764116179955,5.7637979,2959.5,2959.4,0.9559]
[1764116180656,2.38484876,2959.5,2959.4,0.9559]
[1764116181018,5.7637979,2959.5,2959.4,0.9559]
[1764116182755,1.44525465,2959.5,2959.4,0.9559]
[1764116182966,1.65925465,2959.5,2959.4,0.9559]
[1764116184455,5.03820379,2959.5,2959.4,0.9559]
[1764116184756,1.65925465,2959.5,2959.4,0.9559]
[1764116186267,5.08552875,2959.5,2959.2,0.001]
[1764116186473,8.24654692,2959.5,2959.4,0.4676]
[1764116186665,5.95666434,2959.5,2959.4,0.4676]
[1764116186968,4.78676434,2959.5,2959.4,0.9635]
[1764116187150,5.00076434,2959.5,2959.4,0.9635]
[1764116187855,0.52955184,2959.5,2959.4,0.9635]
[1764116188061,0.52955184,2959.5,2959.2,0.001]
[1764116188062,0.405504,2959.4,2959.2,0.001]
[1764116188369,3.86822594,2959.3,2959.2,0.001]
[1764116188740,3.86822594,2959.3,2959.2,0.9645]
[1764116188941,3.86822594,2959.3,2959.2,4.3437917]
[1764116189239,0.214,2959.3,2959.2,4.3437917]
[1764116192537,0.002,2959.7,2959.3,0.72559411]
[1764116192738,0.002,2960.0,2959.8,0.72559411]
[1764116192969,0.002,2960.4,2959.9,0.9635]
[1764116193140,0.31727408,2960.4,2960.3,0.5091]
[1764116193542,0.002,2960.4,2960.3,1.005]
[1764116193801,0.216,2960.4,2960.3,1.005]
[1764116194367,0.002,2960.4,2960.3,1.005]
[1764116195267,0.002,2960.4,2960.3,5.10863011]
[1764116196976,0.002,2960.5,2960.3,8.48666611]
[1764116197191,0.002,2960.5,2960.4,0.9635]
[1764116197361,0.002,2960.5,2960.4,4.3414219]
[1764116197686,0.002,2960.5,2960.4,5.06701601]
[1764116198354,0.002,2960.7,2960.4,5.06701601]
[1764116198355,0.002,2960.7,2960.5,1.68909411]
[1764116198560,0.002,2960.8,2960.6,0.4676]
[1764116198755,0.002,2961.1,2960.9,0.4676]
[1764116198952,0.002,2961.1,2961.0,0.9635]
[1764116199351,0.002,2961.1,2961.0,4.34073741]
[1764116201455,0.002,2961.1,2961.0,5.06633152]
[1764116202894,0.002,2961.1,2961.0,4.34073741]
[1764116208682,0.002,2961.1,2961.0,3.84483741]
[1764116208918,0.002,2961.1,2961.0,0.4676]
[1764116214288,0.002,2961.1,2961.0,4.33393741]
[1764116214490,0.216,2961.1,2961.0,4.33393741]
[1764116214735,0.216,2961.1,2961.0,3.84483741]
[1764116214906,0.216,2961.1,2961.0,4.33393741]
[1764116215107,0.216,2961.1,2961.0,0.9567]
[1764116215309,0.216,2961.1,2961.0,3.84483741]
[1764116215613,0.216,2961.1,2961.0,3.84583741]
[1764116216924,0.216,2961.1,2961.0,4.33493741]
[1764116217127,0.216,2961.1,2961.0,3.84583741]
[1764116217328,0.216,2961.1,2961.0,0.4686]
[1764116217498,0.6786,2961.1,2961.0,0.001]
[1764116217825,0.216,2961.1,2961.0,0.5004]
[1764116218691,0.216,2961.1,2961.0,3.87763741]
[1764116219309,0.216,2961.1,2961.0,4.36673741]
[1764116219953,0.216,2961.1,2961.0,0.9895]
[1764116220318,0.216,2961.1,2961.0,3.87763741]
[1764116220713,0.216,2961.1,2961.0,4.35773741]
[1764116222153,0.53120726,2961.1,2961.0,4.35773741]
[1764116222316,0.216,2961.1,2961.0,4.35773741]
[1764116223346,0.53137306,2961.1,2961.0,4.35773741]
[1764116224466,0.53137306,2961.1,2961.0,0.5004]
[1764116224766,1.00787306,2961.1,2961.0,0.001]
[1764116225214,4.7918696,2961.1,2961.0,0.001]
[1764116225415,5.51879412,2961.1,2961.0,0.001]
[1764116227342,0.405504,2961.0,2960.7,0.001]
[1764116227541,3.72559654,2960.8,2960.7,0.001]
[1764116227737,4.76789412,2960.8,2960.7,0.001]
[1764116227990,5.21959412,2960.8,2960.7,0.001]
[1764116229065,5.62509812,2960.8,2960.7,0.001]
[1764116229349,9.00256366,2960.8,2960.7,0.001]
[1764116229676,0.405504,2960.7,2960.4,0.001]
[1764116229839,3.80879654,2960.5,2960.4,0.001]
[1764116230039,4.1241696,2960.5,2960.4,0.001]
[1764116230239,0.405504,2960.4,2959.4,0.001]
[1764116230548,3.33229654,2959.5,2959.4,0.001]
[1764116230753,3.54629654,2959.5,2959.4,0.72659411]
[1764116231047,3.54629654,2959.5,2959.4,5.05355743]
[1764116231252,0.214,2959.5,2959.4,5.05355743]
[1764116231649,3.54629654,2959.5,2959.4,1.19439411]
[1764116231853,3.54629654,2959.5,2959.4,4.57345743]
[1764116232566,0.214,2959.5,2959.4,5.05355743]
[1764116233553,3.54629654,2959.5,2959.4,1.19439411]
[1764116233876,3.54629654,2959.5,2959.4,4.57345743]
[1764116234769,3.54629654,2959.5,2959.4,0.001]
[1764116234770,4.02279654,2959.5,2959.4,0.001]
[1764116234970,3.54629654,2959.5,2959.4,0.4688]
[1764116235278,3.33229654,2960.1,2959.4,11.08608996]
[1764116235455,0.214,2959.8,2959.5,0.4801]
[1764116235848,0.214,2959.8,2959.7,0.4678]
[1764116236376,0.214,2959.8,2959.7,0.9479]
[1764116236565,3.33229654,2960.1,2959.7,0.9479]
[1764116236744,3.33229654,2960.1,2960.0,0.4678]
[1764116237069,3.54629654,2960.1,2960.0,0.4678]
[1764116237372,3.54629654,2960.1,2959.6,0.72559411]
[1764116237373,4.02279654,2960.1,2959.6,0.72559411]
[1764116237676,7.32979308,2959.7,2959.4,0.001]
[1764116237848,4.21430054,2959.5,2959.4,0.001]
[1764116238170,4.52817256,2959.5,2959.4,0.001]
[1764116238376,4.97987256,2959.5,2959.4,0.001]
[1764116238552,1.64757602,2959.5,2959.4,0.001]
[1764116240263,4.52700268,2960.2,2959.4,0.4688]
[1764116240476,0.214,2960.1,2959.5,0.4992]
[1764116240654,4.33830268,2960.0,2959.4,0.001]
[1764116241069,4.33830268,2960.0,2959.4,0.4808]
[1764116241572,4.33830268,2960.0,2959.5,3.37894914]
[1764116241762,4.33830268,2960.4,2959.9,0.4992]
[1764116241963,0.52739392,2960.3,2959.9,0.4992]
[1764116242164,0.214,2960.3,2959.9,0.4992]
[1764116242475,0.214,2960.2,2959.9,0.4992]
[1764116243063,0.6778,2960.2,2959.6,0.4798]
[1764116243246,0.214,2960.2,2959.6,0.4798]
[1764116243452,0.214,2960.2,2959.7,3.37872081]
[1764116243773,0.214,2960.2,2959.6,3.85859604]
[1764116244150,0.6778,2960.2,2959.4,3.38003341]
[1764116244376,0.6778,2960.2,2959.4,6.75909673]
[1764116244377,0.214,2960.2,2959.4,6.75909673]
[1764116244577,0.1887,2960.8,2960.1,0.5458]
[1764116244776,0.31331195,2960.7,2960.1,0.5458]
[1764116244982,0.52731195,2960.7,2960.1,0.5458]
[1764116245158,0.6525,2960.8,2960.1,0.5458]
[1764116245159,0.31331195,2960.6,2960.1,1.0256]
[1764116245494,0.4638,2961.0,2960.2,6.75630024]
[1764116245650,0.52739353,2960.9,2960.5,0.4992]
[1764116245850,0.31339353,2960.8,2960.5,0.4992]
[1764116247077,0.4891,2960.6,2960.1,3.42485561]
[1764116247279,0.214,2960.5,2960.1,3.42485561]
[1764116247481,0.214,2960.5,2960.1,3.90465561]
[1764116247793,0.214,2960.5,2959.7,0.72559411]
[1764116247999,0.214,2960.5,2959.7,4.10431492]
[1764116248200,0.6778,2960.5,2959.7,7.48303573]
[1764116248352,0.214,2960.5,2959.7,7.96283573]
[1764116248557,0.214,2960.5,2959.8,0.4798]
[1764116249666,0.214,2960.5,2959.9,3.37849251]
[1764116249870,0.214,2960.5,2959.9,6.75698502]
[1764116250053,0.214,2960.5,2959.9,7.23678502]
[1764116250656,0.002,2960.9,2960.4,0.4992]
[1764116250852,0.214,2960.8,2960.4,0.4992]
[1764116251082,0.4891,2960.5,2959.9,3.37849251]
[1764116251267,0.4192,2960.4,2959.9,3.37849251]
[1764116251686,0.4192,2960.4,2959.9,0.72559411]
[1764116251892,0.214,2960.4,2960.3,0.4992]
[1764116252093,0.214,2960.4,2960.0,0.4798]
[1764116252269,0.214,2960.4,2959.9,0.72559411]
[1764116252785,0.214,2960.4,2960.3,0.4992]
[1764116253290,0.4658,2960.9,2960.3,0.4992]
[1764116253507,0.31398755,2960.8,2960.3,0.979]
[1764116253677,0.214,2960.8,2960.4,3.8576489]
[1764116254075,0.4891,2960.5,2960.0,0.0466]
[1764116254305,0.4192,2960.4,2959.9,0.72559411]
[1764116254677,0.883,2960.4,2959.8,0.72559411]
[1764116255192,0.4192,2960.4,2959.8,0.72559411]
[1764116256217,0.4192,2960.4,2959.9,3.37849251]
[1764116256362,0.883,2960.4,2959.9,3.37849251]
[1764116256801,0.4192,2960.4,2959.8,3.37855459]
[1764116257033,0.208,2959.9,2959.7,0.72559411]
[1764116257203,0.6975,2959.8,2959.6,3.37883497]
[1764116257407,0.6107,2959.7,2959.5,0.001]
[1764116257709,0.6948,2959.6,2959.5,0.001]
[1764116258537,0.214,2959.7,2959.5,0.98]
[1764116258695,0.214,2959.7,2959.6,0.4992]
[1764116258888,0.214,2959.7,2959.6,0.979]
[1764116260227,0.214,2959.7,2959.6,4.35783497]
[1764116261195,0.214,2959.7,2959.6,5.08342908]
[1764116265433,0.214,2959.8,2959.6,8.46226405]
[1764116265633,0.214,2959.8,2959.7,0.4992]
[1764116267339,0.002,2960.0,2959.7,0.4992]
[1764116267340,0.002,2960.0,2959.8,6.75721332]
[1764116267542,0.002,2960.0,2959.9,0.979]
[1764116268919,0.002,2960.0,2959.9,1.70459411]
[1764116269331,0.002,2960.0,2959.9,5.08308662]
[1764116270051,0.002,2960.0,2959.9,4.60328662]
[1764116270933,0.002,2960.0,2959.9,3.87769251]
[1764116271154,0.002,2960.0,2959.9,4.10408662]
[1764116271155,0.501,2960.0,2959.9,4.10408662]
[1764116271616,0.9761,2960.0,2959.7,3.37868698]
[1764116271961,0.002,2960.0,2959.7,6.75740779]
[1764116273369,0.002,2960.0,2959.6,0.72559411]
[1764116273519,0.002,2960.0,2959.6,1.18969411]
[1764116273954,0.002,2960.0,2959.6,0.72559411]
[1764116275569,0.002,2960.0,2959.7,3.37872081]
[1764116275873,0.4771,2960.0,2959.5,0.001]
[1764116276022,0.002,2960.0,2959.6,0.72559411]
[1764116276673,0.4771,2960.0,2959.6,0.72559411]
[1764116277231,0.002,2960.0,2959.6,0.72559411]
[1764116277436,0.216,2960.0,2959.9,0.4561]
[1764116277650,0.002,2960.0,2959.9,0.4561]
[1764116277944,0.002,2960.0,2959.9,3.83459251]
[1764116278455,0.002,2960.0,2959.9,4.33247743]
[1764116278956,0.002,2960.0,2959.9,3.83459251]
[1764116280663,0.002,2960.0,2959.9,5.01688662]
[1764116294957,0.002,2960.0,2959.9,4.10408662]
[1764116294958,0.4993,2960.0,2959.9,4.10408662]
[1764116295152,0.002,2960.0,2959.9,4.55608662]
[1764116295689,0.002,2960.0,2959.9,5.01278662]
[1764116303884,0.002,2960.0,2959.9,5.04657154]
[1764116304088,0.002,2960.0,2959.9,5.68740704]
[1764116305075,0.002,2960.0,2959.9,5.22678662]
[1764116306193,0.002,2960.0,2959.9,5.26057154]
[1764116306707,0.002,2960.0,2959.9,5.76607554]
[1764116307909,0.002,2960.3,2960.0,1.13109811]
[1764116308087,0.002,2960.3,2960.2,0.5353]
[1764116308289,0.002,2960.3,2960.2,0.7493]
[1764116308588,0.002,2960.3,2960.2,1.2035]
[1764116309001,0.002,2960.3,2960.2,1.2372815]
[1764116309621,0.002,2960.3,2960.2,5.34102573]
[1764116311988,0.002,2960.3,2960.2,5.30724423]
[1764116312188,0.002,2960.3,2960.2,5.34102573]
[1764116312388,0.002,2960.3,2960.2,5.30724423]
[1764116312590,0.002,2960.3,2960.2,5.34102573]
[1764116312789,0.002,2960.3,2960.2,5.44102573]
[1764116312994,0.002,2960.3,2960.2,5.84652973]
[1764116314097,0.002,2960.3,2960.2,5.81274823]
[1764116314298,0.002,2960.3,2960.2,5.94806691]
[1764116315623,0.002,2960.3,2960.2,5.84806691]
[1764116315828,0.002,2960.3,2960.2,5.98184841]
[1764116316026,0.002,2960.3,2960.2,5.94806691]
[1764116316225,0.002,2960.3,2960.2,5.42764841]
[1764116316432,0.002,2960.3,2960.2,5.39386691]
[1764116316726,0.002,2960.3,2960.2,5.84806691]
[1764116317027,0.002,2960.3,2960.2,4.85304423]
[1764116321833,0.002,2960.3,2960.2,5.30724423]
[1764116326437,0.002,2960.3,2960.2,5.84652973]
[1764116326951,0.002,2960.9,2960.8,0.405504]
[1764116327109,0.002,2960.9,2960.8,1.14197865]
[1764116327310,0.002,2960.9,2960.8,1.59617865]
[1764116328331,0.002,2960.9,2960.8,5.7992383]
[1764116328539,0.002,2960.9,2960.8,9.26466504]
[1764116328840,0.002,2960.9,2960.8,9.23089039]
[1764116330644,0.002,2960.9,2960.8,9.26419039]
[1764116332129,0.002,2960.9,2960.8,5.34655395]
[1764116332638,0.002,2960.9,2960.8,5.3413002]